Cogmind - Beta 15 @@@ ROGUE MODE // 2025.05.27 @ 15:45:39 Player: H3-RMN Result: Destroyed by Y-64 Sentinel with Wave Gun Performance ------------- Evolutions (6) 3000 Regions Visited (14) 2800 Robots Destroyed (146) 730 Value Destroyed (6567) 6567 Prototype IDs (44) 880 Alien Tech Used (0) 0 Bonus (10540) 10540 TOTAL SCORE: 24517 Bonus ------- Triggered High Security 500 High Alert Combat Kills 2147 Follower Combat Kills 4520 Entered DSFs 500 Network Hubs Disabled 200 Delivered SUBCON Basin 2000 Registered with UFD 300 Met Optimus in HQ 500 Met R17 at Cetus 500 Friendly Fire -627 Cogmind --------- Core Integrity 0/1150 Matter 89/300 Energy 99/100 System Corruption 3% Temperature Cool (9) Movement Core (50) Location -4/Factory Parts ------- > --- POWER (3) -------- (None) > --- PROPULSION (4) --- (None) > --- UTILITY (10) ----- Advanced Hacking Suite > --- WEAPON (2) ------- Power Maul > --- INVENTORY (5) ---- Botcube Large Botcube Large Botcube Peak State ------------ > --- POWER ------------ Compact Particle Reactor Quantum Reactor Quantum Reactor > --- PROPULSION ------- Centrium Heavy Treads Centrium Heavy Treads > --- UTILITY ---------- Experimental Heat Sink Huge Storage Unit Experimental Targeting Computer Core Analyzer Advanced Transmission Jammer Medium Regenerative Plating Remote Force Field Energy Deflector A0-MCA's Component Scanner Tech Extrapolator > --- WEAPON ----------- Neutron Cannon Advanced KE Penetrator > --- INVENTORY -------- Reinforced Quantum Reactor Centrium Heavy Treads Coolant Network Advanced Energy Well Matter Compressor Experimental Terrain Scanner Surveybot 17 Chip Experimental Phase Shifter Centrium Medium Armor Plating Centrium Medium Armor Plating Centrium Medium Armor Plating Remote Force Field Authchip [Weapon] Mapping Drone Bay Power Bank Advanced Variable Charge Gun Advanced KE Penetrator Heavy Missile Launcher Botcube Botcube Large Botcube [Rating: 158] Favorites ----------- Power Quantum Reactor Engine Subdweller Power Source Power Core Neutrino Core Reactor Quantum Reactor Propulsion Centrium Heavy Treads Treads Centrium Heavy Treads Leg Carbon-fiber Leg Wheel Armored Wheel Flight Unit Flight Unit Utility Huge Storage Unit Device Experimental Heat Sink Storage Huge Storage Unit Processor Core Analyzer Hackware Improved System Shield Protection Medium Regenerative Plating Weapon Advanced KE Penetrator Energy Gun Advanced Variable Charge Gun Energy Cannon Subdweller Beam Cannon Ballistic Gun Advanced KE Penetrator Ballistic Cannon Heavy Mass Driver Launcher Heavy Missile Launcher Special Weapon CPS Tube Impact Weapon Power Maul Special Melee Weapon Datajack Build | -11 -10 -10 -9 -9 -6 -6 -6 -6 -6 -5 -5 -5 -5 -4 ------- Run | Yrd Mat Sub Rec Scr Fac Ext Cet Arc Hub Fac Was Fac DSF Fac Slots Evolved 12 | . . . . . 8 . . . . 2 . . . 2 Power 2 | . . . . . 1 . . . . 1 . . . . Propulsion 2 | . . . . . 2 . . . . . . . . . Utility 8 | . . . . . 5 . . . . 1 . . . 2 Weapon . | . . . . . . . . . . . . . . . Parts Attached 146 | 7 4 11 2 12 30 28 12 6 7 1 6 . 3 17 Power 20 | 1 . 1 . 1 6 3 3 . 1 . 1 . . 3 Engine 10 | 1 . 1 . 1 6 1 . . . . . . . . Core 1 | . . . . . . 1 . . . . . . . . Reactor 9 | . . . . . . 1 3 . 1 . 1 . . 3 Propulsion 31 | 2 3 3 2 2 11 3 2 . . . 2 . . 1 Treads 8 | . 2 1 . . 1 . 2 . . . 2 . . . Leg 2 | . . . . . . 2 . . . . . . . . Wheel 19 | 2 1 2 2 . 10 1 . . . . . . . 1 Hover . | . . . . . . . . . . . . . . . Flight 2 | . . . . 2 . . . . . . . . . . Utility 54 | 2 1 1 . 4 6 10 4 4 6 . 3 . 2 11 Device 24 | 1 . . . 1 1 6 1 1 3 . 3 . 1 6 Storage 6 | 1 1 . . 1 1 1 . . 1 . . . . . Processor 5 | . . . . . 1 . 1 1 . . . . . 2 Hackware 11 | . . 1 . 1 3 . . 2 2 . . . . 2 Protection 8 | . . . . 1 . 3 2 . . . . . 1 1 Artifact . | . . . . . . . . . . . . . . . Weapon 41 | 2 . 6 . 5 7 12 3 2 . 1 . . 1 2 Energy Gun 10 | . . 1 . 1 3 3 1 1 . . . . . . Energy Cannon 6 | . . 2 . 1 . 2 . . . 1 . . . . Ballistic Gun 13 | 2 . 3 . 1 3 2 1 1 . . . . . . Ballistic Cannon 1 | . . . . . . . . . . . . . . 1 Launcher 1 | . . . . . . . . . . . . . 1 . Special Weapon 8 | . . . . 1 1 5 1 . . . . . . . Impact Weapon 1 | . . . . . . . . . . . . . . 1 Slashing Weapon . | . . . . . . . . . . . . . . . Piercing Weapon . | . . . . . . . . . . . . . . . Special Melee Weapon 1 | . . . . 1 . . . . . . . . . . Unidentified Prototypes 12 | . . . . . . 4 4 . 2 1 1 . . . Corrupted Parts 3 | . . . . 1 . . . . 2 . . . . . System Corruption 9 | . . . . 2 . . . . 7 . . . . . Parts Lost 32 | . 1 3 . . 13 1 . . 1 . . . . 13 Power 4 | . . . . . 2 . . . . . . . . 2 Propulsion 10 | . 1 2 . . 4 . . . . . . . . 3 Utility 10 | . . 1 . . 4 1 . . . . . . . 4 Weapon 8 | . . . . . 3 . . . 1 . . . . 4 Highest Loss Streak 13 | . 1 1 . . 3 1 . . 1 . . . . 13 To Critical Strikes . | . . . . . . . . . . . . . . . Average Backups 17 | 3 6 8 9 17 24 25 22 21 20 20 18 20 19 15 Power . | . 1 1 1 . . . 1 1 . 1 1 1 1 . Propulsion 1 | 1 3 1 1 . . 2 1 1 1 1 . 1 1 . Utility 10 | . . 2 5 10 12 13 13 13 13 14 12 14 13 10 Weapon 3 | . 1 2 2 2 6 4 4 4 3 2 3 3 3 2 Tool/Special . | . . . . . . . . . . . . . . . Unused Backups 84 | . . 7 . 6 3 45 3 2 2 . 5 . 1 10 Power 7 | . . 2 . . . 3 . . . . 1 . . 1 Propulsion 26 | . . 3 . . 2 17 3 . . . . . . 1 Utility 36 | . . . . 5 1 17 . 2 1 . 3 . . 7 Weapon 14 | . . 2 . 1 . 8 . . 1 . 1 . . 1 Tool/Special 1 | . . . . . . . . . . . . . 1 . Average Slot Usage (%) 87 | . 99 99 100 84 78 82 86 85 86 82 86 88 88 71 Engine 8 | . 14 14 14 14 11 11 . . . . . . . . Reactor 5 | . . . . . . . 11 13 13 11 16 17 17 11 Treads 6 | . 11 13 4 . . . 6 13 13 11 11 11 11 7 Wheel 13 | . 16 14 23 27 19 22 13 . . . . . . 1 Device 5 | . 14 9 . . 6 10 18 1 . 1 8 11 11 14 Storage 9 | . 14 14 14 12 5 6 6 6 6 5 5 5 5 4 Processor 4 | . . . . . 2 . 5 12 13 11 11 11 11 18 Hackware 9 | . . 4 14 8 14 9 . 11 13 21 11 11 9 . Protection 4 | . . . . 1 2 5 7 12 12 5 4 5 5 4 Energy Gun 3 | . . 3 . . 3 8 12 6 5 1 . . . . Energy Cannon 5 | . . 12 14 6 2 1 . . . 2 5 5 4 2 Ballistic Gun 7 | . 28 11 14 7 5 1 . 5 6 5 5 5 5 2 Peak Build Rating 158 | 7 8 35 35 36 66 77 111 123 125 125 141 134 140 158 Average Rating 68 | 5 7 28 29 24 54 60 92 122 123 123 132 134 137 128 On Entrance 74 | . 7 8 35 20 36 54 76 111 123 118 122 134 134 140 Naked Turns 54 | . . . . . . . . . . . . . . 54 Heaviest Build 317 | 12 87 98 97 217 231 317 147 150 147 144 188 174 162 173 Greatest Support 160 | 20 40 20 24 24 44 32 160 160 160 160 160 160 160 160 Greatest Overweight (x) 48 | . 4 9 8 9 26 29 9 48 . . 2 1 1 8 Average Overweight (x) 4 | . . 5 4 3 7 9 6 18 . . . 1 . . Largest Inventory Capacity 35 | 8 25 25 25 35 35 35 25 25 25 25 25 25 25 25 Average Capacity 25 | 7 10 25 25 25 34 34 25 25 25 25 25 25 25 22 Most Carried 35 | 5 9 25 25 35 35 35 25 25 25 25 25 24 25 25 Average Carried 23 | 3 7 22 21 22 33 29 24 24 24 24 22 24 24 21 Final Capacity 35 | 8 25 25 25 35 35 25 25 25 25 25 25 25 25 5 Final Carried 35 | 5 9 25 19 35 35 25 25 25 25 24 24 24 25 5 Class Distribution -------------------- 38% | Mutant 36% | Scavenger-Mutant 13% | Hauler-Mutant 3% | Scavenger-Scrapper 3% | Commander-Mutant 3% | Commander-Scrapper Dominant Class ---------------- Mutant | -10/Materials Mutant | -10/Subcaves Mutant | -9/Recycling Mutant | -9/Scraptown Hauler-Mutant | -6/Factory Hauler-Mutant | -6/Extension Scavenger-Scrapper | -6/Cetus Scavenger-Mutant | -6/Archives Scavenger-Mutant | -6/Hub_04(d) Scavenger-Mutant | -5/Factory Scavenger-Mutant | -5/Waste Scavenger-Mutant | -5/Factory Scavenger-Mutant | -5/DSF Scavenger-Mutant | -4/Factory Resources | -11 -10 -10 -9 -9 -6 -6 -6 -6 -6 -5 -5 -5 -5 -4 ----------- Run | Yrd Mat Sub Rec Scr Fac Ext Cet Arc Hub Fac Was Fac DSF Fac Matter Collected 4695 | 302 151 289 36 207 718 626 260 170 497 100 158 . 110 1071 Remotely . | . . . . . . . . . . . . . . . Salvage Created 8262 | 95 330 670 220 . 2198 946 140 178 843 245 413 . 191 1793 Parts 332 | 4 13 47 12 . 76 30 11 27 26 11 1 . 15 59 Haulers Intercepted 6 | . . . . . 1 . . . 1 1 . . . 3 Recyclers Shooed 15 | . . . 1 . 6 7 . . . 1 . . . . Parts Field Recycled . | . . . . . . . . . . . . . . . Retrieved Matter . | . . . . . . . . . . . . . . . Parts Self-Destructed 8 | . . 8 . . . . . . . . . . . . Prevented . | . . . . . . . . . . . . . . . Kills | -11 -10 -10 -9 -9 -6 -6 -6 -6 -6 -5 -5 -5 -5 -4 ------- Run | Yrd Mat Sub Rec Scr Fac Ext Cet Arc Hub Fac Was Fac DSF Fac Combat Hostiles Destroyed 97 | . 6 14 4 . 15 14 2 . 8 4 . . 2 28 Guns 50 | . 6 4 . . 12 13 1 . 8 2 . . 1 3 Cannons 37 | . . 9 4 . . . . . . 2 . . 1 21 AOE 4 | . . . . . . . . . . . . . . 4 Classes Destroyed 20 | 2 3 1 1 . 6 2 . 1 1 1 . . 1 1 Worker 15 | . . . . . 10 . . . 1 . . . . 4 Builder 1 | . . . . . 1 . . . . . . . . . Tunneler 1 | 1 . . . . . . . . . . . . . . Hauler 6 | . . . . . 1 . . . 1 1 . . . 3 Recycler 14 | 1 . . . . 8 2 . . 1 . . . . 2 Operator 7 | . 1 . . . . . . 5 . 1 . . . . Watcher 3 | . 1 . . . . . . . 1 . . . . 1 Swarmer 3 | . . . . . . . . . . 2 . . . 1 Cutter 1 | . . . . . . . . . 1 . . . . . Saboteur 1 | . . . . . . . . . . . . . . 1 Grunt 32 | . 6 . . . 5 11 . . . 1 . . . 9 Brawler 2 | . . . . . . . . . . . . . . 2 Duelist 4 | . . . . . . 1 . . . . . . . 3 Sentry 15 | . . . 4 . 1 . . . 3 . . . . 7 Specialist 3 | . . . . . 2 . . . . . . . 1 . Hunter 10 | . . . . . 5 1 . . 2 1 . . . 1 Programmer 7 | . . . . . 2 1 . . . . . . . 4 Heavy 1 | . . . . . . . . . . . . . 1 . Cetus Guard 2 | . . . . . . . 2 . . . . . . . Lightning 2 | . . . . . . . . . 2 . . . . . Subdweller 14 | . . 14 . . . . . . . . . . . . Botcube 2 | . . . . . . . . 2 . . . . . . Wasp 1 | . . . . . . . . . . . 1 . . . Savage 1 | . . . . . . 1 . . . . . . . . Best Kill Streak 16 | 2 2 3 1 . 8 4 1 2 4 2 . . 1 16 Combat Bots Only 10 | . 2 3 1 . 4 3 1 . 2 2 . . 1 10 Max Kills in Single Turn 2 | 1 1 1 1 . 2 1 1 1 2 1 1 . 1 2 Gunslinging . | . . . . . . . . . . . . . . . Exploded 2 | . . . . . . . . . . . . . . 2 Melee . | . . . . . . . . . . . . . . . Uniques/NPCs Destroyed 1 | . . . . . . 1 . . . . . . . . A7 (-6/Extension) Combat | -11 -10 -10 -9 -9 -6 -6 -6 -6 -6 -5 -5 -5 -5 -4 -------- Run | Yrd Mat Sub Rec Scr Fac Ext Cet Arc Hub Fac Was Fac DSF Fac Hostile Shots Fired 928 | . 30 26 4 . 221 120 38 8 88 24 . . 3 366 Missed 304 | . 10 2 1 . 59 50 9 4 28 8 . . 2 131 Deflected 1 | . . . . . . . . . . . . . . 1 Hits 624 | . 20 24 3 . 162 70 29 4 60 16 . . 1 235 Melee 18 | . . . . . 1 . . . 8 . . . . 9 Projectile 606 | . 20 24 3 . 161 70 29 4 52 16 . . 1 226 AOE 5 | . . . . . . 1 . . 1 . . . . 3 Critical Strikes 34 | . . 1 . . 4 2 3 . 7 . . . . 17 Damage Taken 12127 | . 272 569 49 50 2562 1278 833 94 966 283 58 . 18 5095 Core 1836 | . 62 81 . 25 267 96 78 21 21 . . . 18 1167 Absorbed by Shields 745 | . . . . . . 128 . . . . . . . 617 Reduced by Siege Mode 5 | . . . . . . . . . 5 . . . . . Regen/Repaired (Parts) 917 | . . . . . 10 160 162 97 112 12 218 . . 146 Core Remaining (%) 68 | 100 . . . 32 . . . . 43 . . . 98 . Volleys Fired 590 | 8 37 64 9 . 122 96 22 46 45 22 8 . 5 106 Largest 2 | 2 2 2 2 . 2 2 2 2 2 2 1 . 2 2 Hottest 240 | 40 40 120 110 . 113 160 160 160 115 125 90 . 125 240 Shots Fired 858 | 16 74 89 15 . 193 125 43 59 69 39 8 . 9 119 Gun 673 | 16 74 52 8 . 179 114 41 59 69 23 5 . 5 28 Cannon 166 | . . 37 7 . 12 3 . . . 16 3 . 4 84 Launcher 7 | . . . . . . . . . . . . . . 7 Special 12 | . . . . . 2 8 2 . . . . . . . Kinetic 456 | 16 74 48 8 . 107 38 . 10 33 17 5 . 5 95 Thermal 367 | . . 37 7 . 72 79 41 49 36 22 3 . 4 17 Explosive 7 | . . . . . . . . . . . . . . 7 Electromagnetic 16 | . . 4 . . 12 . . . . . . . . . Robot Hit Streak 26 | 5 12 18 11 . 11 16 26 14 9 7 8 . 3 13 Robot Miss Streak 9 | 2 2 1 1 . 5 4 1 2 9 3 1 . 6 2 Penetration Max 1 | . . . . . 1 1 . . 1 1 . . . 1 Secondary Targets 5 | . . . . . 3 . 1 . . . . . . 1 Max Gunslinging Chain 1 | . . . . . 1 . 1 . . . . . . 1 Shots Hit Robots 589 | 10 51 40 9 1 146 93 38 48 30 23 5 . 2 93 Core Hits 300 | 3 15 18 4 . 76 42 12 26 18 10 7 . 2 67 Critical Kills 11 | . 1 1 . . . 1 . 1 5 1 . . 1 . Critical Parts Destroyed 6 | . 1 . . . . . . . 5 . . . . . Critical Strikes 41 | . 2 2 . . 2 10 3 2 10 1 . . 1 8 Burn 14 | . . . . . 1 9 3 1 . . . . . . Meltdown 1 | . . 1 . . . . . . . . . . . . Destroy 18 | . 2 1 . . . 1 . 1 10 1 . . 1 1 Blast 7 | . . . . . . . . . . . . . . 7 Corrupt 1 | . . . . . 1 . . . . . . . . . Melee Attacks 1 | . . . . 1 . . . . . . . . . . Impact . | . . . . . . . . . . . . . . . Slashing . | . . . . . . . . . . . . . . . Piercing . | . . . . . . . . . . . . . . . Sneak Attacks 1 | . . . . 1 . . . . . . . . . . Combat Hostiles . | . . . . . . . . . . . . . . . Follow-up Attacks . | . . . . . . . . . . . . . . . Damage Inflicted 18251 | 131 564 748 232 . 3482 2055 752 1149 1002 859 599 . 89 6589 Guns 10282 | 131 564 334 69 . 3090 1975 752 1149 1002 389 94 . 53 680 Cannons 6200 | . . 414 163 . 314 80 . . . 406 112 . 36 4675 Explosions 1769 | . . . . . 78 . . . . 64 393 . . 1234 Melee . | . . . . . . . . . . . . . . . Ramming . | . . . . . . . . . . . . . . . Kinetic 9511 | 131 564 289 69 . 1743 613 . 159 573 329 94 . 53 4894 Thermal 7147 | . . 414 163 . 1425 1442 752 990 429 530 505 . 36 461 Explosive 1234 | . . . . . . . . . . . . . . 1234 Electromagnetic 359 | . . 45 . . 314 . . . . . . . . . Impact . | . . . . . . . . . . . . . . . Slashing . | . . . . . . . . . . . . . . . Piercing . | . . . . . . . . . . . . . . . Highest Corruption 9 | . . . . 2 5 5 5 5 9 . . . . 3 Average Corruption 4 | . . . . 2 2 5 5 4 2 . . . . 2 Corruption Purged 5 | . . . . . . . . 5 . . . . . . Corruption Blocked . | . . . . . . . . . . . . . . . Effects 91 | . . . . 4 5 53 18 3 1 . . . . 7 Message Errors 16 | . . . . 1 2 10 2 . . . . . . 1 Matter Fused 29 | . . . . 2 . 14 8 3 . . . . . 2 Heat Flow Errors 12 | . . . . . 1 9 1 . . . . . . 1 Energy Discharges 8 | . . . . 1 1 4 1 . . . . . . 1 Parts Rejected 5 | . . . . . . 1 2 . 1 . . . . 1 Data Loss (minor) 7 | . . . . . 1 5 . . . . . . . 1 Data Loss (major) 4 | . . . . . . 2 2 . . . . . . . Misfires 5 | . . . . . . 4 1 . . . . . . . Weapon Failures 5 | . . . . . . 4 1 . . . . . . . Overload Shots 1 | . . . . . . . . . . . . . . 1 Overflow Damage 324 | . . . . . . . . . . . 6 . . 318 Projectiles 276 | . . . . . . . . . . . . . . 276 Explosions 48 | . . . . . . . . . . . 6 . . 42 Melee . | . . . . . . . . . . . . . . . Knockbacks 13 | . . . . . . . . . . . . . . 13 Impact . | . . . . . . . . . . . . . . . Kinetic 13 | . . . . . . . . . . . . . . 13 Secondary . | . . . . . . . . . . . . . . . Self-Inflicted Damage 229 | . . . . . . . . . . . 58 . . 171 Shots 6 | . . . . . . . . . . . 1 . . 5 Rammed . | . . . . . . . . . . . . . . . Targets Rammed . | . . . . . . . . . . . . . . . Kicked . | . . . . . . . . . . . . . . . Crushed . | . . . . . . . . . . . . . . . Highest Temperature 401 | . 9 1 108 . 401 379 216 200 354 246 11 . . 215 Average Temperature 78 | . 7 1 34 . 80 76 47 74 97 83 9 . . 78 Received Heat Transfer 2051 | . 150 84 9 . 159 378 108 9 120 18 . . . 1016 Effects 4 | . . . . . 1 2 . . 1 . . . . . Energy Bleed 3 | . . . . . 1 1 . . 1 . . . . . Damage (minor) 1 | . . . . . . 1 . . . . . . . . Siege Activations 1 | . . . . . . . . . 1 . . . . . Total Turns 9 | . . . . . . . . . 9 . . . . . Longest Duration 9 | . . . . . . . . . 9 . . . . . Martial Activations . | . . . . . . . . . . . . . . . Shielding Activations . | . . . . . . . . . . . . . . . Robots Disrupted . | . . . . . . . . . . . . . . . Combat Hostiles . | . . . . . . . . . . . . . . . Robots Corrupted 2 | . . . . . 2 . . . . . . . . . Combat Hostiles 2 | . . . . . 2 . . . . . . . . . Parts Fried 3 | . . . . . 3 . . . . . . . . . Impact Corruptions . | . . . . . . . . . . . . . . . Robots Melted 4 | . . 1 . . 1 1 1 . . . . . . . Combat Hostiles 4 | . . 1 . . 1 1 1 . . . . . . . Parts Melted 28 | . . 3 . . 10 7 3 . 5 . . . . . Heat Transferred 13347 | . . 555 222 . 3100 4014 2100 2005 481 174 400 . . 296 Parts Sabotaged 4 | . . . . . 3 . . . . . . . . 1 Parts Stolen . | . . . . . . . . . . . . . . . Parts Stripped . | . . . . . . . . . . . . . . . Power Chain Reactions 4 | . . . . . 1 . . . . 2 1 . . . Alert | -11 -10 -10 -9 -9 -6 -6 -6 -6 -6 -5 -5 -5 -5 -4 ------- Run | Yrd Mat Sub Rec Scr Fac Ext Cet Arc Hub Fac Was Fac DSF Fac Maximum Alert Level 5 | . . . . . . 4 3 2 2 3 1 . 2 5 Low Security (%) 67 | 100 100 . 100 . 100 53 . 82 44 . 90 100 25 1 Level 1 12 | . . . . . . 8 . 16 14 73 9 . 42 16 Level 2 8 | . . . . . . 18 40 . 41 8 . . 31 . Level 3 6 | . . . . . . 10 59 . . 18 . . . 22 Level 4 2 | . . . . . . 10 . . . . . . . 8 Level 5 . | . . . . . . . . . . . . . . 1 High Security 3 | . . . . . . . . . . . . . . 48 Max Security . | . . . . . . . . . . . . . . . Sterilizations 1 | . . . . . . . . . . . . . 1 . Peak Influence 2964 | 5 96 . 63 . 109 1236 792 415 592 809 280 . 429 2964 Initial 686 | . . . . . . 9 686 279 . 277 280 . . 224 Average 249 | 1 42 . 15 . 41 325 710 69 311 408 45 . 240 1541 Influence Increases 9201 | 10 227 . 271 . 707 1824 278 200 975 762 12 . 509 3426 Destroy 0b10 Robot/C 3780 | . 120 . 80 . 380 820 160 80 460 300 . . 200 1180 Destroy 0b10 Robot/NC 375 | 10 10 . . . 110 30 10 25 65 20 . . . 95 Destroy Leader 696 | . 32 . . . 116 116 . . 126 42 . . 30 234 Allied During Kill 2153 | . . . . . 41 661 93 47 115 221 . . 230 745 Successful Hack 248 | . 20 . 10 . 10 110 . . 90 8 . . . . Select Force Hacks 230 | . . . 180 . . . . . 50 . . . . . Disable Machine 555 | . 15 . . . 15 60 15 45 45 60 . . 30 270 Anti-Garrison Action 150 | . . . . . . . . . . . . . . 150 Destroy Structure 474 | . . . 1 . 5 27 . 3 24 66 12 . 4 332 Lose Combat Pursuer 540 | . 30 . . . 30 . . . . 45 . . 15 420 Influence Decreases 6237 | 10 165 62 271 . 688 617 806 898 407 529 813 . 80 891 Entered New Map 2016 | . . 30 . . . 10 540 419 . 291 521 . . 205 Time Decay 2988 | 10 155 30 259 . 370 306 246 479 397 238 292 . . 206 Lost Part 272 | . 10 2 . . 120 . . . 10 . . . . 130 Lost Ally 799 | . . . . . 198 151 20 . . . . . 80 350 Purge Threat 162 | . . . 12 . . 150 . . . . . . . . Squads Dispatched 52 | . 2 . . . 6 5 . . 5 3 . . 2 29 Investigation 12 | . 1 . . . 3 3 . . 2 1 . . . 2 Extermination 2 | . . . . . 1 . . . 1 . . . . . Reinforcement 17 | . 1 . . . 2 1 . . 2 2 . . 2 7 Assault 17 | . . . . . . 1 . . . . . . . 16 Garrison 4 | . . . . . . . . . . . . . . 4 Intercept . | . . . . . . . . . . . . . . . Searches Triggered . | . . . . . . . . . . . . . . . Construction Impeded 2 | . . . . . . . . . . 1 . . . 1 Haulers Reinforced 4 | . . . . . 1 . . . . . . . . 3 Active Scanning Responses . | . . . . . . . . . . . . . . . Cargo Convoy Interrupts 1 | . . . . . 1 . . . . . . . . . Stealth | -11 -10 -10 -9 -9 -6 -6 -6 -6 -6 -5 -5 -5 -5 -4 --------- Run | Yrd Mat Sub Rec Scr Fac Ext Cet Arc Hub Fac Was Fac DSF Fac Distress Signals 23 | . . . . . 1 4 2 . 3 . . . . 13 Communications Jammed 125 | . . . . . . . . . . . . . . 125 Distress Signals 125 | . . . . . . . . . . . . . . 125 Times Spotted 294 | . 12 14 1 . 41 51 10 20 20 15 . . 8 102 Peak Tracking Total 21 | . 2 3 . . 11 10 5 1 4 6 . . 4 21 Tactical Retreats 16 | . 2 . . . 2 . . . . 1 . . 1 10 Traps | -11 -10 -10 -9 -9 -6 -6 -6 -6 -6 -5 -5 -5 -5 -4 ------- Run | Yrd Mat Sub Rec Scr Fac Ext Cet Arc Hub Fac Was Fac DSF Fac Traps Triggered 11 | . . 2 . 1 . 5 . . . 1 . . 1 1 Indirectly . | . . . . . . . . . . . . . . . Trap Hack Attempts . | . . . . . . . . . . . . . . . Triggered . | . . . . . . . . . . . . . . . Disarmed . | . . . . . . . . . . . . . . . Reprogrammed . | . . . . . . . . . . . . . . . Reused . | . . . . . . . . . . . . . . . Traps Extracted . | . . . . . . . . . . . . . . . Installed 1 | . . . . 1 . . . . . . . . . . Triggered . | . . . . . . . . . . . . . . . Most Traps Carried 1 | . . 1 1 1 . . . . . . . . . . Machines | -11 -10 -10 -9 -9 -6 -6 -6 -6 -6 -5 -5 -5 -5 -4 ---------- Run | Yrd Mat Sub Rec Scr Fac Ext Cet Arc Hub Fac Was Fac DSF Fac Machines Disabled 42 | . 1 2 . . 1 6 1 3 3 4 . . 2 19 Max in Single Turn 1 | . 1 1 . . . 1 1 1 1 1 . . 1 1 Garrison Access 1 | . . . . . . . . . . . . . . 1 Network Hub 1 | . . . . . . . . . 1 . . . . . Energy Cycler 2 | . . . . . . 2 . . . . . . . . Machines Repaired . | . . . . . . . . . . . . . . . Machines Dismantled 2 | . . . . . . 1 1 . . . . . . . Machines Sabotaged 1 | . . . . . . . . . 1 . . . . . Overloaded Fab Kills . | . . . . . . . . . . . . . . . Hacking | -11 -10 -10 -9 -9 -6 -6 -6 -6 -6 -5 -5 -5 -5 -4 --------- Run | Yrd Mat Sub Rec Scr Fac Ext Cet Arc Hub Fac Was Fac DSF Fac Machines Accessed 58 | . 3 4 12 4 6 17 . . 7 2 . 1 . 2 Terminals 34 | . 2 . 6 . 3 14 . . 7 1 . 1 . . Fabricators 1 | . . . . . . . . . . . . . . 1 Repair Stations 2 | . 1 . . . . 1 . . . . . . . . Recycling Units 13 | . . . 6 . 3 2 . . . 1 . . . 1 Scanalyzers . | . . . . . . . . . . . . . . . Garrison Access . | . . . . . . . . . . . . . . . Total Hacks 191 | . 8 7 40 33 19 42 . . 22 8 . 3 . 9 Successful 124 | . 2 7 26 33 12 20 . . 10 6 . 1 . 7 Failed 66 | . 6 . 13 . 7 22 . . 12 2 . 2 . 2 Catastrophic 15 | . 1 . . . 2 6 . . 5 1 . . . . Database Lockouts 1 | . . . 1 . . . . . . . . . . . Manual 71 | . 2 . 25 . 10 13 . . 12 7 . . . 2 Terminals 107 | . 5 . 27 . 12 32 . . 22 6 . 3 . . Fabricators 7 | . . . . . . . . . . . . . . 7 Repair Stations 5 | . 3 . . . . 2 . . . . . . . . Recycling Units 32 | . . . 13 . 7 8 . . . 2 . . . 2 Scanalyzers . | . . . . . . . . . . . . . . . Garrison Access . | . . . . . . . . . . . . . . . Terminal Hacks 65 | . 1 7 6 33 4 9 . . 2 2 . 1 . . Record 30 | . . 4 . 26 . . . . . . . . . . Part Schematic 5 | . . . 4 . . 1 . . . . . . . . Robot Analysis 8 | . . . . 7 . 1 . . . . . . . . Prototype ID Bank 1 | . . . . . . . . . 1 . . . . . Open Door 7 | . . 1 . . 1 5 . . . . . . . . Open DSF 1 | . . . . . . . . . . . . 1 . . Branch Access Points 2 | . . . . . 1 . . . . 1 . . . . Terminal Index 3 | . . . 1 . 1 . . . . 1 . . . . Unreport Threat 2 | . . . 1 . . 1 . . . . . . . . Locate Traps 2 | . 1 . . . . 1 . . . . . . . . Zone Layout 2 | . . . . . 1 . . . 1 . . . . . Proto ID Catalog 1 | . . 1 . . . . . . . . . . . . Release Object 1 | . . 1 . . . . . . . . . . . . Fabricator Hacks 5 | . . . . . . . . . . . . . . 5 Network Status 1 | . . . . . . . . . . . . . . 1 Load Schematic 2 | . . . . . . . . . . . . . . 2 Build 2 | . . . . . . . . . . . . . . 2 Repair Station Hacks 3 | . 1 . . . . 2 . . . . . . . . Scan Component 1 | . . . . . . 1 . . . . . . . . Repair 1 | . . . . . . 1 . . . . . . . . Refit 1 | . 1 . . . . . . . . . . . . . Recycling Unit Hacks 13 | . . . 7 . 2 2 . . . 1 . . . 1 Report Inventory 11 | . . . 6 . 2 1 . . . 1 . . . 1 Retrieve Components 2 | . . . 1 . . 1 . . . . . . . . Scanalyzer . | . . . . . . . . . . . . . . . Garrison Access Hacks . | . . . . . . . . . . . . . . . Unauthorized Hacks 38 | . . . 13 . 6 7 . . 8 3 . . . 1 Terminals 24 | . . . 7 . 3 4 . . 8 2 . . . . Track 5 | . . . . . . 1 . . 4 . . . . . Assimilate 1 | . . . . . . . . . 1 . . . . . Botnet 7 | . . . 2 . 1 1 . . 2 1 . . . . Operators 1 | . . . . . 1 . . . . . . . . . Skim 9 | . . . 5 . 1 2 . . . 1 . . . . Sabotage 1 | . . . . . . . . . 1 . . . . . Fabricators . | . . . . . . . . . . . . . . . Repair Stations . | . . . . . . . . . . . . . . . Recycling Units 14 | . . . 6 . 3 3 . . . 1 . . . 1 Mask 1 | . . . . . . 1 . . . . . . . . Tunnel 6 | . . . 6 . . . . . . . . . . . Fedlink 1 | . . . . . 1 . . . . . . . . . Scrapoids 6 | . . . . . 2 2 . . . 1 . . . 1 Scanalyzers . | . . . . . . . . . . . . . . . Garrison Access . | . . . . . . . . . . . . . . . Data Cores Recovered 2 | . . . . . . . . . 2 . . . . . Used 1 | . . . . . . . . . 1 . . . . . Hacking Detections 33 | . 3 . 7 . 3 11 . . 7 1 . . . 1 Full Trace Events 5 | . 1 . 1 . . 1 . . 1 . . . . 1 Feedback Events . | . . . . . . . . . . . . . . . Feedback Blocked . | . . . . . . . . . . . . . . . Robot Schematics Acquired . | . . . . . . . . . . . . . . . Robots Built . | . . . . . . . . . . . . . . . Authchips . | . . . . . . . . . . . . . . . Time . | . . . . . . . . . . . . . . . Total Robot Build Rating . | . . . . . . . . . . . . . . . Part Schematics Acquired 27 | . . . 4 . . 1 . 2 8 2 1 . 2 7 Parts Built 3 | . . . . . . . . . . . . . . 3 Authchips 2 | . . . . . . . . . . . . . . 2 Time 146 | . . . . . . . . . . . . . . 146 Total Part Build Rating 19 | . . . . . . . . . . . . . . 19 Parts Repaired 1 | . . . . . . 1 . . . . . . . . Time 31 | . . . . . . 31 . . . . . . . . Parts Recycled . | . . . . . . . . . . . . . . . Recycled Matter . | . . . . . . . . . . . . . . . Retrieved Matter . | . . . . . . . . . . . . . . . Retrieved Components 12 | . . . 2 . . 10 . . . . . . . . Parts Scanalyzed . | . . . . . . . . . . . . . . . Part Schematics Acquired . | . . . . . . . . . . . . . . . Parts Damaged . | . . . . . . . . . . . . . . . Bothacking | -11 -10 -10 -9 -9 -6 -6 -6 -6 -6 -5 -5 -5 -5 -4 ------------ Run | Yrd Mat Sub Rec Scr Fac Ext Cet Arc Hub Fac Was Fac DSF Fac Used RIF Installer . | . . . . . . . . . . . . . . . Robots Hacked 2 | . . . . 1 . 1 . . . . . . . . Non-combat 1 | . . . . . . 1 . . . . . . . . Combat 1 | . . . . 1 . . . . . . . . . . Robot Hacks Applied 2 | . . . . 1 . 1 . . . . . . . . parse_system 1 | . . . . 1 . . . . . . . . . . no_distress 1 | . . . . . . 1 . . . . . . . . Relay Couplers Released 2 | . . . . . . . . . . . . . . 2 Machine Destruction 2 | . . . . . . . . . . . . . . 2 Fabnet Peak Effective % . | . . . . . . . . . . . . . . . Robots Rewired 9 | . . . . . . 9 . . . . . . . . Allies Hacked 1 | . . . . . . . . . . . . . . 1 Hacks Repelled . | . . . . . . . . . . . . . . . Allies | -11 -10 -10 -9 -9 -6 -6 -6 -6 -6 -5 -5 -5 -5 -4 -------- Run | Yrd Mat Sub Rec Scr Fac Ext Cet Arc Hub Fac Was Fac DSF Fac Total Allies 72 | . . . . . 10 30 1 . . 5 21 . . 5 Largest Group 27 | . . . . . 5 22 5 4 2 7 27 27 27 20 Highest-Rated Group 1195 | . . . . . 146 882 311 264 197 424 1195 1195 1195 962 Highest-Rated Ally 159 | . . . . . 31 159 102 102 102 95 98 98 98 98 Total Orders 7 | . . . . . . 1 . . . . 2 . 2 2 STAY 2 | . . . . . . 1 . . . . 1 . . . FOLLOW 1 | . . . . . . . . . . . 1 . . . RETURN 4 | . . . . . . . . . . . . . 2 2 Ally Attacks 794 | . . . . . 58 233 45 6 50 31 . . 73 298 Total Damage 24162 | . . . . . 777 6995 1317 257 3038 1091 . . 1042 9645 Kills 149 | . . . . . 6 40 8 4 24 13 . . 9 45 Allies Corrupted 3 | . . . . . . . . . . . . . 1 2 Allies Melted . | . . . . . . . . . . . . . . . Intel | -11 -10 -10 -9 -9 -6 -6 -6 -6 -6 -5 -5 -5 -5 -4 ------- Run | Yrd Mat Sub Rec Scr Fac Ext Cet Arc Hub Fac Was Fac DSF Fac Active Infowar (turns) 4723 | 17 390 1993 . 144 399 256 . . 2 111 708 12 146 545 Terrain 72 | . . . . . . . . . . . . . . 72 Structural 1655 | . . . . 144 399 256 . . . 111 667 12 66 . Seismic 2400 | 17 390 1993 . . . . . . . . . . . . Jamming 662 | . . . . . . . . . . . 41 . 80 541 ECM 2 | . . . . . . . . . 2 . . . . . Robot Analysis Total 8 | . . . . 7 . 1 . . . . . . . . Derelict Logs Recovered 5 | . . 1 . 4 . . . . . . . . . . Drone Launches 6 | . . . . . . . . . . . . . 2 4 Drone Recoveries 6 | . . . . . . . . . . . . . 2 4 Exploration | -11 -10 -10 -9 -9 -6 -6 -6 -6 -6 -5 -5 -5 -5 -4 ------------- Run | Yrd Mat Sub Rec Scr Fac Ext Cet Arc Hub Fac Was Fac DSF Fac Turns Passed 21603 | 90 390 2958 1149 5335 1181 2024 538 3476 970 505 1866 12 262 847 Spaces Moved 9836 | 62 188 1568 690 3663 400 816 244 317 466 248 625 5 130 414 Core 323 | 1 . . . . . . . 121 . . . . . 201 Treads 1932 | . 45 . . . . . 42 196 466 248 625 5 130 175 Legs . | . . . . . . . . . . . . . . . Wheels 7466 | 61 143 1568 690 3548 400 816 202 . . . . . . 38 Hover . | . . . . . . . . . . . . . . . Flight 115 | . . . . 115 . . . . . . . . . . Fastest Speed 37 | 50 80 140 150 37 142 100 100 160 160 160 160 240 160 50 Average Speed 186 | 79 112 175 157 141 181 167 145 1034 160 160 240 240 162 115 Slowest Speed 2450 | 80 160 215 210 225 330 360 160 2450 160 160 320 240 240 240 Overloaded Moves . | . . . . . . . . . . . . . . . Propulsion Burnouts . | . . . . . . . . . . . . . . . Robots Hopped . | . . . . . . . . . . . . . . . Potential Cave-ins . | . . . . . . . . . . . . . . . Cave-ins Triggered . | . . . . . . . . . . . . . . . Exploration Rate (%) 55 | 4 32 85 98 91 9 76 66 75 41 10 84 . 80 20 Regions Visited 14 Branch Regions 7 Pre-discovered Areas 16 | . . 2 6 8 . . . . . . . . . . Known Exits Taken 3 | . . . . . 1 . . . 1 . . 1 . . Unknown Exits Taken 8 | 1 1 1 1 1 . 1 1 1 . . . . . . Scrap Searched 12 | . . 6 . 6 . . . . . . . . . . Spaces Dug 16 | . . 5 . . . . . . 8 3 . . . . Terrain Destroyed 150 | . . 7 1 . 3 1 . 3 22 25 11 . 2 75 Melee . | . . . . . . . . . . . . . . . Projectile 86 | . . 7 1 . 1 1 . 3 22 16 3 . 2 30 AOE 64 | . . . . . 2 . . . . 9 8 . . 45 Terrain Rammed . | . . . . . . . . . . . . . . . Walls Destroyed . | . . . . . . . . . . . . . . . Machines Disabled . | . . . . . . . . . . . . . . . Actions | -11 -10 -10 -9 -9 -6 -6 -6 -6 -6 -5 -5 -5 -5 -4 --------- Run | Yrd Mat Sub Rec Scr Fac Ext Cet Arc Hub Fac Was Fac DSF Fac Total 12296 | 88 299 1691 738 3832 673 1395 388 471 620 316 987 6 169 623 Wait 1036 | . 62 15 26 2 56 229 66 91 83 35 308 2 20 41 Move 9823 | 61 187 1567 689 3662 399 815 243 316 465 248 624 4 129 414 Hop . | . . . . . . . . . . . . . . . Pick Up 274 | 12 5 16 9 77 47 62 11 3 5 3 13 . 3 8 Fast Attach 67 | . . 1 1 6 15 8 5 4 5 1 8 . . 13 Attach 68 | 7 1 3 . 8 12 13 3 1 1 2 2 . 2 13 Detach 12 | . 1 . . 1 1 2 . . . . 1 . . 6 Swap 86 | . 5 9 1 5 8 17 14 4 8 1 1 . 7 6 Drop 241 | . 1 16 3 69 13 65 16 6 8 4 21 . 3 16 Fire 590 | 8 37 64 9 . 122 96 22 46 45 22 8 . 5 106 Melee 1 | . . . . 1 . . . . . . . . . . Ram . | . . . . . . . . . . . . . . . Kick . | . . . . . . . . . . . . . . . Crush . | . . . . . . . . . . . . . . . Escape Stasis 24 | . . . . . . 24 . . . . . . . . Rewire 57 | . . . . . . 56 . . . . 1 . . . Trap 1 | . . . . 1 . . . . . . . . . . Miscellaneous 16 | . . . . . . 8 8 . . . . . . . Route ------- -11/Scrapyard -10/Materials (discovered 2 exits: [*Min] / *Sub) -10/Subcaves (discovered 3 exits: [*Mat x2] / *Rec) -9/Recycling (discovered 2 exits: [*Fac] / *Scr) -9/Scraptown (discovered 2 exits: *Fac x2) -6/Factory (discovered 5 exits: Fac / *Low x2 / *Ext x2) -6/Extension (discovered 2 exits: *Fac / *Cet) -6/Cetus (discovered 2 exits: *Fac / [*Arc]) -6/Archives (discovered 3 exits: *Fac / *Hub x2) -6/Hub_04(d) -5/Factory (discovered 3 exits: *Fac / *Upp x2) -5/Waste -5/Factory -5/DSF -4/Factory History --------- Turn | Location | Event 28 | -11/Scrapyard | Discovered new exit (range 14) 91 | -11/Scrapyard | Entered Materials 302 | -10/Materials | Build established: Mutant 413 | -10/Materials | Discovered new exit (range 13) 474 | -10/Materials | Discovered new exit (range 6) 481 | -10/Materials | Entered Subcaves 730 | -10/Subcaves | Shifting Twisted Machinery released Sub. Beam Cannon 758 | -10/Subcaves | Shifting Twisted Machinery released Sub. Power Source 896 | -10/Subcaves | Found SUBCON Basin 1263 | -10/Subcaves | Discovered new exit (range 6) 1437 | -10/Subcaves | Shifting Twisted Machinery released Sub. Monowheel 1994 | -10/Subcaves | Core integrity fell below 50% 2231 | -10/Subcaves | Ambushed by Subdwellers from Twisted Machinery 2246 | -10/Subcaves | Visited Clippyterm 2251 | -10/Subcaves | Learned location of Extension (-6) 2251 | -10/Subcaves | Learned Factory fabricator intel 2288 | -10/Subcaves | Build established: Scavenger-Mutant 2532 | -10/Subcaves | Visited 4L-MR0's lab 2570 | -10/Subcaves | Found Power Bank 2609 | -10/Subcaves | Build established: Mutant 2766 | -10/Subcaves | Ambushed by Subdwellers from Twisted Machinery 2827 | -10/Subcaves | Discovered new exit (range 16) 2831 | -10/Subcaves | Learned location of Zion (-6) 3436 | -10/Subcaves | Discovered new exit (range 3) 3439 | -10/Subcaves | Entered Recycling 3903 | -9/Recycling | Discovered new exit (range 15) 4138 | -9/Recycling | Scanned before Scraplab entrance 4159 | -9/Recycling | Entered Scraplab 4585 | -9/Recycling | Discovered new exit (range 3) 4588 | -9/Recycling | Entered Scraptown 4833 | -9/Scraptown | Visited The Evicted 4888 | -9/Scraptown | Visited Cyclists 4912 | -9/Scraptown | Visited Assassins FH 4924 | -9/Scraptown | Visited Scrapoid Research Area 4953 | -9/Scraptown | Visited Awakened 5125 | -9/Scraptown | Heard Great Nut preacher, LISTEN AND RECITE! 5198 | -9/Scraptown | Scanned Subdweller tech in exchange for log data 5201 | -9/Scraptown | Learned Factory stockpile data 5203 | -9/Scraptown | Learned location of 2 exits from Proximity Caves 5204 | -9/Scraptown | Learned location of Testing (-2) 5206 | -9/Scraptown | Learned Research trap positions 5273 | -9/Scraptown | Discovered new exit (range 13) 5369 | -9/Scraptown | Visited Cave Peace 5398 | -9/Scraptown | Visited UFD Registry 5398 | -9/Scraptown | Registered with UFD as "Plasmanuts" 5510 | -9/Scraptown | Guru changed UFD alias to "Protoguard" 5637 | -9/Scraptown | Visited Research Penetration Think Tank 5671 | -9/Scraptown | Visited Curators Association 5710 | -9/Scraptown | Visited Botcube Research 5717 | -9/Scraptown | Found Lrg. Botcube 5764 | -9/Scraptown | Delivered Scrap Shield to a Scientist 5872 | -9/Scraptown | Visited LU-1G1's Boring Crew 5895 | -9/Scraptown | Visited Scrap Suit Storage 5918 | -9/Scraptown | Visited A0-MCA Data Center 5936 | -9/Scraptown | Visited Supply Room 5961 | -9/Scraptown | Visited Analyses Database 5994 | -9/Scraptown | Visited Infowarlord's Domain 6020 | -9/Scraptown | Visited Cartography Club 6065 | -9/Scraptown | Found Surveybot 17 Chip 6170 | -9/Scraptown | Learned location of Storage (-9) 6170 | -9/Scraptown | Learned location of Upper Caves (-5) 6170 | -9/Scraptown | Learned 8 Materials zone layouts 6170 | -9/Scraptown | Learned 12 Factory zone layouts 6170 | -9/Scraptown | Learned 4 Storage zone layouts 6170 | -9/Scraptown | Learned 8 Upper Caves zone layouts 6170 | -9/Scraptown | Learned 8 Proximity Caves zone layouts 6170 | -9/Scraptown | Learned 4 Hub_04(d) zone layouts 6170 | -9/Scraptown | Learned Factory emergency access door positions 6170 | -9/Scraptown | Learned location of 3 exits from Factory 6170 | -9/Scraptown | Learned location of 1 exit from Research 6170 | -9/Scraptown | Learned location of 1 exit from Lower Caves 6206 | -9/Scraptown | Found Deep Structural Scanner 6360 | -9/Scraptown | Visited Science Testing Area 6792 | -9/Scraptown | Given an A+ rating by A0-MCA 6795 | -9/Scraptown | Found A0-MCA's Component Scanner 7187 | -9/Scraptown | Warned about trapping Scraptown 7292 | -9/Scraptown | Found Lrg. Botcube 7295 | -9/Scraptown | Found Botcube 7298 | -9/Scraptown | Found Botcube 7302 | -9/Scraptown | Found Botcube 7381 | -9/Scraptown | Discovered new exit (range 5) 7388 | -9/Scraptown | System corruption cleaned by C-Scrubber 7459 | -9/Scraptown | Found Scrap Suit 7736 | -9/Scraptown | Entered Cyclist Reading Room 7741 | -9/Scraptown | Learned location of Exiles (-9) 8751 | -9/Scraptown | Build established: Hauler-Mutant 9483 | -9/Scraptown | Found Exp. Terrain Scanner 9802 | -9/Scraptown | Met Optimus 9802 | -9/Scraptown | Accepted into 0bPrime 9923 | -9/Scraptown | Entered Factory 9923 | -6/Factory | Evolved 8 slots: Power x1, Propulsion x2, Utility x5 9924 | -6/Factory | Identified exit to Extension 9924 | -6/Factory | Identified exit to Factory 9928 | -6/Factory | Loaded intel: 4 fabricator locations 10077 | -6/Factory | Identified exit to Lower Caves 10197 | -6/Factory | Scrapoids reinforcements arrived? 10247 | -6/Factory | Loaded intel: 8 recycling unit locations 10363 | -6/Factory | Lost 3 allies 10538 | -6/Factory | Lost 3 parts (1p2n) 10616 | -6/Factory | Lost 3 parts (1p2u) 10668 | -6/Factory | Lost 3 parts (1n2w) 10957 | -6/Factory | Build established: Scavenger-Mutant 10983 | -6/Factory | Scrapoid reinforcements arrived 11079 | -6/Factory | Lost 4 allies 11084 | -6/Factory | Cargo convoy interrupted 11104 | -6/Factory | Entered Extension 11150 | -6/Extension | Rescued a captive Derelict 11162 | -6/Extension | Rescued a captive Derelict 11164 | -6/Extension | Rescued a captive Derelict 11282 | -6/Extension | Rescued a captive Derelict 11282 | -6/Extension | Rescued a captive Derelict 11314 | -6/Extension | Rescued a captive Derelict 11408 | -6/Extension | Lost 4 allies 11558 | -6/Extension | Build established: Hauler-Mutant 11813 | -6/Extension | Lrg. Botcube activated 11972 | -6/Extension | Botcube activated 11986 | -6/Extension | Botcube completed mutation into legged form, armed with 1 melee weapon. 12029 | -6/Extension | Disrupted transfer network 12054 | -6/Extension | Rescued A7 12099 | -6/Extension | Scrapoids reinforcements arrived? 12157 | -6/Extension | Spotted B-75 Beast 12164 | -6/Extension | Spotted B-75 Beast 12167 | -6/Extension | Found Scrap Suit 12177 | -6/Extension | Allies destroyed B-75 Beast 12192 | -6/Extension | Lost 4 allies 12209 | -6/Extension | Found Scrap Suit 12303 | -6/Extension | Lrg. Botcube activated 12337 | -6/Extension | Lrg. Botcube completed mutation into treaded form, armed with 4 guns. 12518 | -6/Extension | Rescued a captive Derelict 12541 | -6/Extension | Build established: Commander-Scrapper 12695 | -6/Extension | Scrapoid reinforcements arrived 12720 | -6/Extension | Energy Cycler disabled 12721 | -6/Extension | Rescued a captive Derelict 12726 | -6/Extension | Rescued a captive Derelict 12727 | -6/Extension | Rescued a captive Derelict 12733 | -6/Extension | Found Scrap Suit 12751 | -6/Extension | Lost 5 allies 12828 | -6/Extension | Repaired Myomer Leg 12854 | -6/Extension | First assault squad dispatched 12897 | -6/Extension | Allies destroyed A7 12941 | -6/Extension | Found Prototype Protection 12941 | -6/Extension | Identified Med. Regenerative Plating 12954 | -6/Extension | Lost 9 allies 13062 | -6/Extension | Discovered exit to Factory (range 10) 13063 | -6/Extension | Discovered new exit (range 6) 13128 | -6/Extension | Entered Cetus 13128 | -6/Cetus | Accompanied by 4 allies 13141 | -6/Cetus | Botcube activated 13151 | -6/Cetus | Botcube completed mutation into wheeled form, armed with 1 cannon. 13170 | -6/Cetus | Spotted Cetus Guard 13170 | -6/Cetus | Spotted Cetus Guard 13172 | -6/Cetus | Spotted Cetus Guard 13173 | -6/Cetus | Spotted Cetus Guard 13178 | -6/Cetus | Destroyed Cetus Guard 13185 | -6/Cetus | Allies destroyed Cetus Guard 13191 | -6/Cetus | Allies destroyed Cetus Guard 13193 | -6/Cetus | Allies destroyed Cetus Guard 13201 | -6/Cetus | Build established: Scavenger-Scrapper 13484 | -6/Cetus | Discovered new exit (range 15) 13529 | -6/Cetus | Spotted Cetus Guard 13529 | -6/Cetus | Spotted Cetus Guard 13532 | -6/Cetus | Spotted Cetus Guard 13532 | -6/Cetus | Spotted Cetus Guard 13542 | -6/Cetus | Core integrity fell below 50% 13545 | -6/Cetus | Allies destroyed Cetus Guard 13548 | -6/Cetus | Allies destroyed Cetus Guard 13552 | -6/Cetus | Destroyed Cetus Guard 13556 | -6/Cetus | Allies destroyed Cetus Guard 13567 | -6/Cetus | Discovered exit to Factory (range 16) 13576 | -6/Cetus | Met Revision 17 13666 | -6/Cetus | Entered Archives 13666 | -6/Archives | Accompanied by 4 allies 13857 | -6/Archives | Discovered exit to Factory (range 15) 13862 | -6/Archives | Murdered *Falx 13862 | -6/Archives | Destroyed *Falx 13869 | -6/Archives | Found Botcube 13879 | -6/Archives | Murdered *Turret 13879 | -6/Archives | Destroyed *Turret 13889 | -6/Archives | Build established: Scavenger-Mutant 13912 | -6/Archives | Discovered new exit (range 15) 13955 | -6/Archives | Found Botcube 14032 | -6/Archives | Discovered new exit (range 13) 17142 | -6/Archives | Entered Hub_04(d) 17142 | -6/Hub_04(d) | Accompanied by 2 allies 17283 | -6/Hub_04(d) | Tech Extrapolator generated special schematic: Deep Structural Scanner 17567 | -6/Hub_04(d) | Tech Extrapolator generated special schematic: Energy Deflector 17777 | -6/Hub_04(d) | Network Hub disabled 17980 | -6/Hub_04(d) | Spotted Lightning 17992 | -6/Hub_04(d) | Spotted Lightning 17993 | -6/Hub_04(d) | Spotted Lightning 17997 | -6/Hub_04(d) | Allies destroyed Lightning 18002 | -6/Hub_04(d) | Found Prototype Device 18021 | -6/Hub_04(d) | Destroyed Lightning 18026 | -6/Hub_04(d) | Destroyed Lightning 18043 | -6/Hub_04(d) | Identified Exp. Phase Shifter 18047 | -6/Hub_04(d) | Found Prototype Processor 18112 | -6/Hub_04(d) | Entered Factory 18112 | -5/Factory | Accompanied by 2 allies 18112 | -5/Factory | Evolved 2 slots: Power x1, Utility x1 18113 | -5/Factory | Identified exit to Upper Caves 18265 | -5/Factory | Discovered new exit (range 3) 18436 | -5/Factory | Scrapoid reinforcements arrived 18617 | -5/Factory | Sucked down chute 18617 | -5/Factory | Entered Waste 18618 | -5/Waste | Joined by Warlord forces that had cleared the area 18767 | -5/Waste | 7 allies followed down the chute 19298 | -5/Waste | Discovered new exit (range 15) 19701 | -5/Waste | Found Damper Plating 20116 | -5/Waste | Botcube activated 20130 | -5/Waste | Botcube completed mutation into treaded form, armed with 1 cannon. 20407 | -5/Waste | Build established: Commander-Mutant 20483 | -5/Waste | Entered Factory 20483 | -5/Factory | Accompanied by 27 allies 20493 | -5/Factory | Identified exit to DSF 20495 | -5/Factory | Entered DSF 20495 | -5/DSF | Accompanied by 27 allies 20527 | -5/DSF | Additional patrols routed to DSF 20575 | -5/DSF | Discovered new exit (range 16) 20587 | -5/DSF | Lost 5 allies 20602 | -5/DSF | Found Lrg. Botcube 20684 | -5/DSF | Sterilization system engaged 20704 | -5/DSF | Ambient heat levels rising (+10) 20719 | -5/DSF | Ambient heat levels rising (+10) 20734 | -5/DSF | Ambient heat levels rising (+10) 20749 | -5/DSF | Ambient heat levels rising (+10) 20757 | -5/DSF | Entered Factory 20757 | -4/Factory | Accompanied by 19 allies 20757 | -4/Factory | Evolved 2 slots: Utility x2 20758 | -4/Factory | Identified Exp. Targeting Computer 20800 | -4/Factory | Build established: Scavenger-Mutant 20834 | -4/Factory | Fabricated Remote Force Field (x2) 20913 | -4/Factory | Scrapoids reinforcements arrived? 20936 | -4/Factory | Fabricated Energy Deflector? 20945 | -4/Factory | Lost 3 allies 21055 | -4/Factory | Spotted B-86 Titan 21061 | -4/Factory | Allies destroyed B-86 Titan 21108 | -4/Factory | Garrison activated, responded to threat 21172 | -4/Factory | P-70 Sage assimilated allied JT-PTI(m) 21190 | -4/Factory | High security lockdown imminent 21216 | -4/Factory | Lost 14 allies 21239 | -4/Factory | Found Lrg. Botcube 21249 | -4/Factory | Destroyed 10 combat bots 21270 | -4/Factory | High security lockdown engaged 21281 | -4/Factory | Found Scrap Suit 21467 | -4/Factory | Destroyed 7 combat bots 21492 | -4/Factory | Spotted B-86 Titan 21496 | -4/Factory | Released all parts (10) 21520 | -4/Factory | Core integrity fell below 50% 21532 | -4/Factory | Core integrity fell below 20% 21549 | -4/Factory | Lost 13 parts (2p3n4u4w) 21604 | -4/Factory | Destroyed by Y-64 Sentinel with Wave Gun Last Messages --------------- 21519_ G-73 Enforcer unfolds itself. 21519_ G-67 Veteran unfolds itself. 21519_ B-60 Warrior unfolds itself. 21519_ G-67 Veteran unfolds itself. 21519_ I-47 Archangel unfolds itself. 21522_ Penetrated by Slug. 21522_ Slug penetrates Wall. 21523_ G-73 Enforcer suffers critical hit (Burn). 21524_ Slug penetrates G-73 Enforcer. 21531_ Triggered Hellfire Trap. 21531_ An explosion rips through the floor. 21539_ The unstable cave ceiling collapses. 21540_ ALERT: Heavy assault forces dispatched. 21545_ Slug penetrates Wall. 21567_ Acquired Adv. Hacking Suite. 21571_ Acquired Power Maul. 21573_ Slug penetrates Wall. 21576_ System corrupted: Matter fused (-7). 21576_ Slug penetrates Wall. 21578_ Penetrated by Slug. Map ----- +----------------------------------------------------+ | ?????????????????????????????????????????????????? | | ?????????????????????????????????????????????????? | | ?????????????????????????????????????????????????? | | ?????????????????????????????????????????????????? | | ?????????????????????????????????????????????????? | | ?????????????????????????????????????????????????? | | ?????????????????????????????????????????????????? | | ?????????#########???????????????????????????????? | | ##+####### #???????????????????????????????? | | #???????????????????????????????? | | #???????????????????????????????? | | #???????????????????????????????? | | #???????????????????????????????? | | #???????????????????????????????? | | #???????????????????????????????? | | #???????????????????????????????? | | ? #########???????????????????????? | | ????# #???????????????????????? | | ????# #???????????????????????? | | ????# #???????????????????????? | | ????# ###+######## #???????????????????????? | | ????# # ?????# #???????????????????????? | | ????# # ???# #???????????????????????? | | ##### # #?# #???????????????????????? | | # # ### ###?????????????????????? | | # # # @ #?????????????????????? | | # # # #?????????????????????? | | # # ????????????????????? | | # + Y ???????????????????? | | ###### # # ??????????????????? | | ?????# # + ## #????????????????? | | ?????+ + # #? #????????????????? | | ?????# #### ####+####?? ???????????????? | | ?????# #??# #??????????? ??????????????? | | ?????# #??# ????????????? ?????????????? | | ?????# #??? ????????????????# T##????????????? | | ?????? ??????????????????????????##??????????????? | | ?????? ??????????????????????????????????????????? | | ?????? ??????????????????????????????????????????? | | ?????????????????????????????????????????????????? | | ?????????????????????????????????????????????????? | | ?????????????????????????????????????????????????? | | ?????????????????????????????????????????????????? | | ?????????????????????????????????????????????????? | | ?????????????????????????????????????????????????? | | ?????????????????????????????????????????????????? | | ?????????????????????????????????????????????????? | | ?????????????????????????????????????????????????? | | ?????????????????????????????????????????????????? | | ?????????????????????????????????????????????????? | +----------------------------------------------------+ Best States ------------- Heat Dissipation 156 Energy Generation 63 Energy Capacity 850 Matter Stores 300 Matter Capacity 300 Sight Range 16 Terrain Scan Range 30 Terrain Scan Density 10 ECM Strength 1 Jamming Range 16 Armor Coverage 900 Projectile Deflection 10 Phase Shifting 20 Evasion (%) 62 Targeting Accuracy 12 Core Analysis 6 Recoil Reduction 4 Offensive Hacking 14 Defensive Hacking 22 Authchip Count 6 Item Schematics ----------------- Arm. Wheel | -9/Recycling | Hacked Hcp. Storage Unit | -9/Recycling | Hacked Hpw. Tractor Beam | -9/Recycling | Hacked Trap Extractor | -9/Recycling | Hacked Remote Force Field | -6/Extension | Hacked Mak. Coolant Network | -6/Archives | Extrapolated Mak. Light Armor Plating | -6/Archives | Extrapolated Mak. Hacking Suite | -6/Hub_04(d) | Extrapolated Deep Structural Scanner | -6/Hub_04(d) | Extrapolated Mak. Terrain Scanner | -6/Hub_04(d) | Extrapolated Energy Deflector | -6/Hub_04(d) | Extrapolated Mak. Hover Unit | -6/Hub_04(d) | Extrapolated Mak. System Shield | -6/Hub_04(d) | Extrapolated Mak. System Restoration Module | -6/Hub_04(d) | Extrapolated Beamcaster | -6/Hub_04(d) | Extrapolated Mak. Transmission Jammer | -5/Factory | Extrapolated Mak. Thermal Plating | -5/Factory | Extrapolated Mak. Power Source | -5/Waste | Extrapolated Mak. Heavy Armor Plating | -5/DSF | Extrapolated Bore Cannon | -5/DSF | Extrapolated Mak. Targeting Computer | -4/Factory | Extrapolated Mak. Shrapnel Gun | -4/Factory | Extrapolated 0b10 Decoder Chip [Skirmisher] | -4/Factory | Extrapolated Mak. Laser | -4/Factory | Extrapolated Hvy. Beamcaster | -4/Factory | Extrapolated Phasing Sabre | -4/Factory | Extrapolated Mak. Flight Unit | -4/Factory | Extrapolated Robot Schematics ------------------ None Fabricated ------------ Remote Force Field | x2 | -4/Factory | Authchip Energy Deflector | x1 | -4/Factory | Authchip Repaired ---------- Myomer Leg | 33% | -6/Extension Alien Tech Used ----------------- None Achievements -------------- None Challenges ------------ None Game ------ Seed MultitargetingGunMonowheel Manual? 0 Play Time 04:03:37 Cumulative 729.5 hours Start 2025.05.19 @ 08:51:35 End 2025.05.27 @ 15:45:39 Sessions 3 Manual Loads 0 Difficulty Rogue Special Mode None Game No. 274 Rogue 270 Adventurer 4 Explorer 0 Win Type - Total 11 Types 6/1/1/1/0/1/0/0/0/1 Lore% 94 Gallery% 89 Achievement% 87 Wizard Run 0 Options --------- Layout 0 ASCII 0 Keyboard 0 Movement Numpad Keybinds 0 Fullscreen 2 Font 18/CogNarrow Map View 76x50 Zoom Use 0% Tactical HUD 1 Map Filters NONE Filters NONE Steam 1 RUN: 24d8d8e3-5726-48dd-bf2b-d0893b18bbf7